fUSD/lending_fUSD_20260225
["ID","MTS","AMOUNT","RATE_DAILY","PERIOD"]
[406631824,1771998636412,-500.0,0.00013698,2]
[406631825,1771998636421,-500.0,0.00013698,2]
[406631826,1771998636430,-500.0,0.00013698,2]
[406631827,1771998636439,-500.0,0.00013698,2]
[406631828,1771998636448,-500.0,0.00013698,2]
[406631829,1771998636457,-500.0,0.00013698,2]
[406631830,1771998636466,-500.0,0.00013698,2]
[406631831,1771998636475,-500.0,0.00013698,2]
[406631832,1771998636484,-500.0,0.00013698,2]
[406631833,1771998636494,-506.76,0.00013698,2]
[406631834,1771998636503,-500.0,0.00013698,2]
[406631835,1771998636513,-500.0,0.00013698,2]
[406631836,1771998636522,-500.0,0.00013698,2]
[406631837,1771998636531,-500.0,0.00013698,2]
[406631838,1771998636540,-410.03196276,0.00013698,2]
[406631839,1771998636549,-500.0,0.00013698,2]
[406631840,1771998636558,-500.0,0.00013698,2]
[406631841,1771998636567,-500.0,0.00013698,2]
[406631842,1771998636576,-500.0,0.00013698,2]
[406631843,1771998636585,-500.0,0.00013698,2]
[406631844,1771998636594,-500.0,0.00013698,2]
[406631845,1771998636604,-500.0,0.00013698,2]
[406631846,1771998636613,-500.0,0.00013698,2]
[406631847,1771998636623,-500.0,0.00013698,2]
[406631848,1771998636631,-500.0,0.00013698,2]
[406631849,1771998636640,-500.0,0.00013698,2]
[406631850,1771998636650,-500.0,0.00013698,2]
[406631851,1771998636659,-500.0,0.00013698,2]
[406631852,1771998636668,-500.0,0.00013698,2]
[406631853,1771998636677,-500.0,0.00013698,2]
[406631854,1771998636686,-500.0,0.00013698,2]
[406631855,1771998636694,-500.0,0.00013698,2]
[406631856,1771998636703,-500.0,0.00013698,2]
[406631857,1771998636712,-500.0,0.00013698,2]
[406631858,1771998636721,-500.0,0.00013698,2]
[406631859,1771998636730,-500.0,0.00013698,2]
[406631860,1771998636739,-500.0,0.00013698,2]
[406631861,1771998636748,-500.0,0.00013698,2]
[406631862,1771998636758,-500.0,0.00013698,2]
[406631863,1771998636768,-500.0,0.00013698,2]
[406631864,1771998636777,-500.0,0.00013698,2]
[406631865,1771998636786,-500.0,0.00013698,2]
[406631866,1771998636795,-500.0,0.00013698,2]
[406631867,1771998636805,-500.0,0.00013698,2]
[406631868,1771998636814,-500.0,0.00013698,2]
[406631869,1771998636823,-500.0,0.00013698,2]
[406631870,1771998636832,-500.0,0.00013698,2]
[406631871,1771998636840,-500.0,0.00013698,2]
[406631872,1771998636849,-500.0,0.00013698,2]
[406631873,1771998636858,-500.0,0.00013698,2]
[406631874,1771998636867,-500.0,0.00013698,2]
[406631875,1771998636876,-500.0,0.00013698,2]
[406631876,1771998636885,-500.0,0.00013698,2]
[406631877,1771998636894,-500.0,0.00013698,2]
[406631878,1771998636902,-500.0,0.00013698,2]
[406631879,1771998636911,-500.0,0.00013698,2]
[406631880,1771998636920,-500.0,0.00013698,2]
[406631881,1771998636929,-329.57186156,0.00013698,2]
[406631882,1771998636938,-200.0,0.00013699,2]
[406631883,1771998636948,-31876.37580021,0.00013759,2]
[406631884,1771998636957,-43644.88609117,0.00013759,2]
[406631885,1771998636966,-506.38080207,0.0001386,2]
[406631886,1771998636975,-1012.45638108,0.0001386,2]
[406631887,1771998636984,-500.0,0.00013861,2]
[406631888,1771998636993,-2129.0,0.00013943,2]
[406631889,1771998637002,-160.0,0.00013995,2]
[406631890,1771998637011,-173.91437885,0.00013995,2]
[406631891,1771998637020,-500.0,0.00014135,2]
[406631892,1771998637030,-401.66,0.00014143,2]
[406631893,1771998637039,-308.29697349,0.00014408,2]
[406631894,1771998637048,-600.0,0.00014449,2]
[406631895,1771998637057,-8332.0,0.00014559,2]
[406631896,1771998637066,-31876.37580021,0.00014794,2]
[406631897,1771998637075,-43644.88609117,0.00014794,2]
[406631898,1771998637084,-500.0,0.000151,2]
[406631899,1771998637093,-162.20020905,0.000151,2]
[406631900,1771998637102,-172.98,0.00015259,2]
[406631901,1771998637111,-151.0,0.00015275,2]
[406631902,1771998637120,-2958.0,0.00015337,2]
[406631903,1771998637129,-791.89842,0.00015648,2]
[406631904,1771998637138,-156.51050416,0.00015823,2]
[406631905,1771998637149,-31876.37580021,0.00015829,2]
[406631906,1771998637159,-43644.88609117,0.00015829,2]
[406631907,1771998637168,-500.0,0.00015857,2]
[406631908,1771998637177,-500.0,0.00015857,2]
[406631909,1771998637187,-500.0,0.00015857,2]
[406631910,1771998637196,-1917.41,0.00015858,2]
[406631911,1771998637205,-1269.22,0.00015858,2]
[406631912,1771998637214,-1040.0,0.00015972,2]
[406631913,1771998637223,-1340.0,0.00015972,2]
[406631914,1771998637234,-3497.0,0.00015972,2]
[406631915,1771998637245,-618.0,0.00015972,2]
[406631916,1771998637254,-150.0,0.00015972,2]
[406631917,1771998637263,-1277.0,0.00015972,2]
[406631918,1771998637272,-920.0,0.00015972,2]
[406631919,1771998637281,-1210.0,0.00015972,2]
[406631920,1771998637291,-413.0,0.00015972,2]
[406631921,1771998637300,-5982.0,0.00015972,2]
[406631922,1771998637309,-202.540468,0.00016,2]
[406631923,1771998637318,-9999.99,0.00016116,2]
[406631924,1771998637328,-2630.97,0.00016116,2]
[406631925,1771998637337,-29999.99,0.00016116,2]
[406631926,1771998637346,-261.556724,0.00016183,7]
[406631927,1771998637355,-1560.0,0.00016438,2]
[406631928,1771998637364,-24203.606411,0.00016448,7]
[406631929,1771998637373,-285.75,0.00016479,2]
[406631930,1771998637382,-165.59,0.00016712,2]
[406631931,1771998637391,-5653.454059,0.00016786,7]
[406631932,1771998637401,-2005.0,0.000168,2]
[406631934,1771998637410,-363.10761403,0.00016822,2]
[406631936,1771998637419,-31876.37580021,0.00016865,2]
[406631938,1771998637429,-43644.88609117,0.00016865,2]
[406631940,1771998637438,-401.66,0.00017071,2]
[406631941,1771998637447,-268.11881189,0.00017099,2]
[406631942,1771998637456,-3916.0,0.000172,2]
[406631943,1771998637466,-500.0,0.00017299,2]
[406631944,1771998637475,-604.80928583,0.00017299,2]
[406631945,1771998637484,-500.0,0.00017299,2]
[406631947,1771998637493,-482.66973402,0.00017405,2]
[406631948,1771998637503,-175.8165122,0.00017477,2]
[406631949,1771998637511,-600.0,0.00017499,2]
[406631951,1771998637520,-173.91437885,0.000175,7]
[406631952,1771998637529,-6400.0,0.000175,6]
[406631953,1771998637538,-1200.0,0.000176,6]
[406631954,1771998637547,-1706.0844629,0.0001764,2]
[406631955,1771998637556,-1200.0,0.000177,6]
[406631956,1771998637566,-2561.16506735,0.0001779,2]
[406631957,1771998637575,-1200.0,0.000178,6]
[406631958,1771998637585,-775.681435,0.00017808,2]
[406631959,1771998637594,-775.681435,0.00017808,2]
[406631960,1771998637603,-775.681435,0.00017808,2]
[406631961,1771998637613,-775.681435,0.00017808,2]
[406631962,1771998637622,-775.681435,0.00017808,2]
[406631963,1771998637631,-775.681435,0.00017808,2]
[406631964,1771998637640,-775.681435,0.00017808,2]
[406631965,1771998637650,-775.681435,0.00017808,2]
[406631966,1771998637659,-775.681435,0.00017808,2]
[406631967,1771998637668,-775.681435,0.00017808,2]
[406631968,1771998637677,-775.681435,0.00017808,2]
[406631969,1771998637687,-775.681435,0.00017808,2]
[406631970,1771998637696,-775.681435,0.00017808,2]
[406631971,1771998637705,-775.681435,0.00017808,2]
[406631972,1771998637714,-775.681435,0.00017808,2]
[406631973,1771998637723,-775.681435,0.00017808,2]
[406631974,1771998637732,-775.681435,0.00017808,2]
[406631975,1771998637741,-775.681435,0.00017808,2]
[406631976,1771998637750,-775.681435,0.00017808,2]
[406631977,1771998637759,-825.04298086,0.00017808,2]
[406631978,1771998637768,-825.04298086,0.00017808,2]
[406631979,1771998637778,-825.04298086,0.00017808,2]
[406631980,1771998637787,-825.04298086,0.00017808,2]
[406631981,1771998637796,-825.04298086,0.00017808,2]
[406631982,1771998637805,-825.04298086,0.00017808,2]
[406631983,1771998637814,-825.04298086,0.00017808,2]
[406631984,1771998637824,-825.04298086,0.00017808,2]
[406631985,1771998637833,-825.04298086,0.00017808,2]
[406631986,1771998637843,-800.0,0.00017808,2]
[406631987,1771998637852,-2000.0,0.0001782,2]
[406631988,1771998637861,-2000.0,0.0001782,2]
[406631989,1771998637870,-482.66973402,0.0001784,2]
[406631990,1771998637879,-200.0,0.00017856,2]
[406631991,1771998637888,-1917.41,0.00017893,2]
[406631992,1771998637897,-1269.22,0.00017893,2]
[406631993,1771998637906,-10000.0,0.00017894,2]
[406631994,1771998637915,-1037.7,0.00017899,2]
[406631995,1771998637924,-500.0,0.00017899,2]
[406631996,1771998637934,-500.0,0.00017899,2]
[406631997,1771998637943,-500.0,0.00017899,2]
[406631998,1771998637953,-1807.69,0.00017899,2]
[406631999,1771998637962,-500.0,0.00017899,2]
[406632000,1771998637973,-746.62,0.00017899,2]
[406632001,1771998637985,-500.0,0.00017899,2]
[406632002,1771998637996,-161.474211,0.00017899,2]
[406632003,1771998638006,-529.93,0.00017899,2]
[406632004,1771998638015,-500.0,0.00017899,2]
[406632005,1771998638025,-466.21355039,0.000179,2]
[406632007,1771998638035,-31876.37580021,0.000179,2]
[406632008,1771998638044,-43644.88609117,0.000179,2]
[406632010,1771998638053,-1200.0,0.000179,6]
[406632012,1771998638062,-8245.92056836,0.000179,2]
[406632015,1771998638072,-12910.90231939,0.000179,2]
[406632016,1771998638081,-2120.96148081,0.000179,2]
[406632018,1771998638091,-500.0,0.000179,2]
[406632020,1771998638100,-500.0,0.000179,2]
[406632022,1771998638110,-500.0,0.000179,2]
[406632025,1771998638119,-500.0,0.000179,2]
[406632027,1771998638128,-500.0,0.000179,2]
[406632029,1771998638137,-500.0,0.000179,2]
[406632030,1771998638147,-500.0,0.000179,2]
[406632031,1771998638161,-500.0,0.000179,2]
[406632032,1771998638171,-500.0,0.000179,2]
[406632033,1771998638180,-500.0,0.000179,2]
[406632034,1771998638189,-500.0,0.000179,2]
[406632035,1771998638198,-500.0,0.000179,2]
[406632036,1771998638208,-500.0,0.000179,2]
[406632037,1771998638217,-500.0,0.000179,2]
[406632038,1771998638229,-500.0,0.000179,2]
[406632039,1771998638239,-500.0,0.000179,2]
[406632040,1771998638248,-500.0,0.000179,2]
[406632041,1771998638258,-500.0,0.000179,2]
[406632042,1771998638268,-500.0,0.000179,2]
[406632043,1771998638277,-500.0,0.000179,2]
[406632044,1771998638286,-500.0,0.000179,2]
[406632045,1771998638296,-500.0,0.000179,2]
[406632046,1771998638305,-500.0,0.000179,2]
[406632047,1771998638314,-500.0,0.000179,2]
[406632048,1771998638323,-500.0,0.000179,2]
[406632049,1771998638333,-500.0,0.000179,2]
[406632050,1771998638342,-500.0,0.000179,2]
[406632051,1771998638351,-500.0,0.000179,2]
[406632052,1771998638361,-500.0,0.000179,2]
[406632053,1771998638370,-500.0,0.000179,2]
[406632054,1771998638380,-500.0,0.000179,2]
[406632055,1771998638389,-500.0,0.000179,2]
[406632056,1771998638399,-500.0,0.000179,2]
[406632057,1771998638408,-500.0,0.000179,2]
[406632058,1771998638417,-500.0,0.000179,2]
[406632059,1771998638427,-500.0,0.000179,2]
[406632060,1771998638436,-500.0,0.000179,2]
[406632061,1771998638446,-500.0,0.000179,2]
[406632062,1771998638455,-500.0,0.000179,2]
[406632063,1771998638464,-500.0,0.000179,2]
[406632064,1771998638475,-500.0,0.000179,2]
[406632065,1771998638484,-500.0,0.000179,2]
[406632066,1771998638493,-500.0,0.000179,2]
[406632067,1771998638503,-500.0,0.000179,2]
[406632068,1771998638513,-500.0,0.000179,2]
[406632069,1771998638522,-500.0,0.000179,2]
[406632070,1771998638573,-500.0,0.000179,2]
[406632071,1771998638657,-500.0,0.000179,2]
[406632072,1771998638667,-491.75116079,0.000179,2]
[406632073,1771998638677,-232.9084823,0.000179,2]
[406632074,1771998638686,-8925.0,0.000179,2]
[406632075,1771998638695,-2561.16506735,0.0001799,2]
[406632076,1771998638705,-500.0,0.00017991,2]
[406632077,1771998638714,-500.0,0.00017991,2]
[406632078,1771998638724,-3113.3099962,0.00017992,2]
[406632079,1771998638733,-58028.4750396,0.00017992,2]
[406632080,1771998638742,-891.7674168,0.00017992,2]
[406632081,1771998638753,-19276.7583813,0.00017992,2]
[406632082,1771998638762,-3957.2702846,0.00017992,2]
[406632083,1771998638772,-1917.41,0.00017993,2]
[406632084,1771998638782,-1917.41,0.00017993,2]
[406632085,1771998638792,-1917.41,0.00017993,2]
[406632086,1771998638802,-1269.22,0.00017993,2]
[406632087,1771998638812,-1269.22,0.00017993,2]
[406632088,1771998638822,-1269.22,0.00017993,2]
[406632089,1771998638831,-500.0,0.00017993,2]
[406632090,1771998638841,-500.0,0.00017993,2]
[406632091,1771998638850,-500.0,0.00017993,2]
[406632092,1771998638860,-500.0,0.00017993,2]
[406632093,1771998638869,-489.68247632,0.00017993,2]
[406632094,1771998638879,-13860.6343434,0.00017994,2]
[406632095,1771998638889,-647085.0604276,0.00017994,2]
[406632096,1771998638898,-3267.9234936,0.00017994,2]
[406632097,1771998638908,-151.0,0.00017994,2]
[406632098,1771998638917,-151.0,0.00017994,2]
[406632099,1771998638926,-224.237037,0.00017994,2]
[406632100,1771998638935,-224.237037,0.00017994,2]
[406632101,1771998638944,-224.237037,0.00017994,2]
[406632102,1771998638953,-224.237037,0.00017994,2]
[406632103,1771998638962,-151.0,0.00017994,2]
[406632104,1771998638971,-151.0,0.00017994,2]
[406632105,1771998638980,-151.0,0.00017994,2]
[406632106,1771998638989,-1015.500842,0.00017994,2]
[406632107,1771998638998,-1015.500842,0.00017994,2]
[406632108,1771998639007,-1015.500842,0.00017994,2]
[406632109,1771998639024,-1015.500842,0.00017994,2]
[406632110,1771998639036,-151.0,0.00017994,2]
[406632111,1771998639047,-151.0,0.00017994,2]
[406632112,1771998639057,-151.0,0.00017994,2]
[406632113,1771998639067,-151.0,0.00017994,2]
[406632114,1771998639077,-500.0,0.00017998,2]
[406632115,1771998639086,-500.0,0.00017998,2]
[406632116,1771998639096,-1037.7,0.00017998,2]
[406632117,1771998639106,-500.0,0.00017998,2]
[406632118,1771998639115,-500.0,0.00017998,2]
[406632119,1771998639124,-500.0,0.00017998,2]
[406632120,1771998639134,-1807.69,0.00017998,2]
[406632121,1771998639143,-500.0,0.00017998,2]
[406632122,1771998639156,-746.62,0.00017998,2]
[406632123,1771998639166,-500.0,0.00017998,2]
[406632124,1771998639175,-529.93,0.00017998,2]
[406632125,1771998639184,-500.0,0.00017998,2]
[406632126,1771998639195,-500.0,0.00017999,2]
[406632127,1771998639204,-500.0,0.00017999,2]
[406632128,1771998639214,-500.0,0.00017999,2]
[406632129,1771998639223,-620.67062755,0.00017999,2]
[406632130,1771998639233,-1037.7,0.00017999,2]
[406632131,1771998639243,-1037.7,0.00017999,2]
[406632132,1771998639253,-1037.7,0.00017999,2]
[406632133,1771998639267,-1037.7,0.00017999,2]
[406632134,1771998639277,-1037.7,0.00017999,2]
[406632135,1771998639286,-1037.7,0.00017999,2]
[406632136,1771998639295,-1037.7,0.00017999,2]
[406632137,1771998639305,-1037.7,0.00017999,2]
[406632138,1771998639314,-1037.7,0.00017999,2]
[406632139,1771998639323,-1037.7,0.00017999,2]
[406632140,1771998639332,-1037.7,0.00017999,2]
[406632141,1771998639341,-1037.74695411,0.00017999,2]
[406632142,1771998639350,-500.0,0.00017999,2]
[406632143,1771998639360,-500.0,0.00017999,2]
[406632144,1771998639369,-500.0,0.00017999,2]
[406632145,1771998639378,-587.13211194,0.00017999,2]
[406632146,1771998639387,-500.0,0.00017999,2]
[406632147,1771998639396,-500.0,0.00017999,2]
[406632148,1771998639406,-500.0,0.00017999,2]
[406632149,1771998639415,-500.0,0.00017999,2]
[406632150,1771998639424,-500.0,0.00017999,2]
[406632151,1771998639434,-500.0,0.00017999,2]
[406632152,1771998639444,-500.0,0.00017999,2]
[406632153,1771998639454,-500.0,0.00017999,2]
[406632154,1771998639463,-500.0,0.00017999,2]
[406632155,1771998639473,-500.0,0.00017999,2]
[406632156,1771998639482,-500.0,0.00017999,2]
[406632157,1771998639491,-508.21782231,0.00017999,2]
[406632158,1771998639502,-300.0,0.00017999,2]
[406632159,1771998639511,-1807.69,0.00017999,2]
[406632160,1771998639520,-1807.69,0.00017999,2]
[406632161,1771998639530,-1807.69,0.00017999,2]
[406632162,1771998639539,-1807.69,0.00017999,2]
[406632163,1771998639548,-1807.69,0.00017999,2]
[406632164,1771998639557,-1807.69,0.00017999,2]
[406632165,1771998639567,-1807.69,0.00017999,2]
[406632166,1771998639576,-1807.69,0.00017999,2]
[406632167,1771998639586,-1807.69,0.00017999,2]
[406632168,1771998639596,-1807.69,0.00017999,2]
[406632169,1771998639605,-1807.69,0.00017999,2]
[406632170,1771998639615,-1807.75094836,0.00017999,2]
[406632171,1771998639624,-1917.41,0.00017999,2]
[406632172,1771998639634,-1917.41,0.00017999,2]
[406632173,1771998639643,-1917.41,0.00017999,2]
[406632174,1771998639653,-1917.41,0.00017999,2]
[406632175,1771998639663,-1917.41,0.00017999,2]
[406632176,1771998639672,-1917.41954412,0.00017999,2]
[406632177,1771998639681,-500.0,0.00017999,2]
[406632178,1771998639690,-500.0,0.00017999,2]
[406632179,1771998639699,-500.0,0.00017999,2]
[406632180,1771998639708,-500.0,0.00017999,2]
[406632181,1771998639718,-500.0,0.00017999,2]
[406632182,1771998639726,-500.0,0.00017999,2]
[406632183,1771998639735,-500.0,0.00017999,2]
[406632184,1771998639745,-500.0,0.00017999,2]
[406632185,1771998639755,-500.0,0.00017999,2]
[406632186,1771998639764,-1269.22,0.00017999,2]
[406632187,1771998639773,-500.0,0.00017999,2]
[406632188,1771998639782,-1269.22,0.00017999,2]
[406632189,1771998639792,-160.74212028,0.00017999,2]
[406632190,1771998639801,-1269.22,0.00017999,2]
[406632191,1771998639810,-1269.22,0.00017999,2]
[406632193,1771998639819,-1269.22,0.00017999,2]
[406632195,1771998639828,-746.62,0.00017999,2]
[406632197,1771998639837,-1269.32334404,0.00017999,2]
[406632199,1771998639846,-746.62,0.00017999,2]
[406632201,1771998639856,-746.62,0.00017999,2]
[406632202,1771998639865,-746.62,0.00017999,2]
[406632203,1771998639874,-746.62,0.00017999,2]
[406632204,1771998639883,-746.62,0.00017999,2]
[406632205,1771998639893,-746.62,0.00017999,2]
[406632206,1771998639905,-746.62,0.00017999,2]
[406632207,1771998639915,-746.62,0.00017999,2]
[406632208,1771998639925,-746.62,0.00017999,2]
[406632209,1771998639936,-746.62,0.00017999,2]
[406632210,1771998639946,-746.8006657,0.00017999,2]
[406632211,1771998639955,-500.0,0.00017999,2]
[406632212,1771998639964,-500.0,0.00017999,2]
[406632213,1771998639973,-500.0,0.00017999,2]
[406632214,1771998639982,-500.0,0.00017999,2]
[406632215,1771998639991,-500.0,0.00017999,2]
[406632216,1771998640000,-500.0,0.00017999,2]
[406632217,1771998640010,-386.19326799,0.00017999,2]
[406632218,1771998640019,-300.0,0.00017999,2]
[406632219,1771998640028,-300.0,0.00017999,2]
[406632220,1771998640037,-666.0,0.00017999,2]
[406632221,1771998640046,-529.93,0.00017999,2]
[406632222,1771998640055,-529.93,0.00017999,2]
[406632223,1771998640065,-529.93,0.00017999,2]
[406632224,1771998640074,-529.93,0.00017999,2]
[406632225,1771998640083,-529.93,0.00017999,2]
[406632226,1771998640092,-529.93,0.00017999,2]
[406632227,1771998640101,-529.93,0.00017999,2]
[406632228,1771998640110,-529.93,0.00017999,2]
[406632229,1771998640119,-529.93,0.00017999,2]
[406632230,1771998640129,-529.93,0.00017999,2]
[406632231,1771998640138,-529.93,0.00017999,2]
[406632232,1771998640148,-530.06159036,0.00017999,2]
[406632233,1771998640161,-500.0,0.00017999,2]
[406632234,1771998640171,-500.0,0.00017999,2]
[406632235,1771998640180,-500.0,0.00017999,2]
[406632236,1771998640191,-222.17486236,0.00017999,2]
[406632237,1771998640202,-300.0,0.00017999,2]
[406632238,1771998640211,-500.0,0.00017999,2]
[406632239,1771998640220,-509.25704796,0.00017999,2]
[406632240,1771998640231,-300.0,0.00017999,2]
[406632241,1771998640240,-666.0,0.00017999,2]
[406632242,1771998640249,-188718.89131352,0.00018,2]
[406632243,1771998640403,-720.05,0.00018,2]
[406632244,1771998640414,-21630.53550064,0.00018,2]
[406632245,1771998640425,-3690.72543594,0.00018,2]
[406632246,1771998640440,-15869.54263018,0.00018,2]
[406632247,1771998640451,-355.44070625,0.00018,2]
[406632248,1771998640467,-1570.52141036,0.00018,2]
[406632249,1771998640482,-299.23478,0.00018,2]
[406632250,1771998640492,-743.4792702,0.00018,2]
[406632251,1771998640505,-129746.51746781,0.00018,2]
[406632252,1771998640517,-122472.13948926,0.00018,2]
[406632255,1771998640741,-573.60730533,0.00018,2]
[406632256,1771998640753,-2936.5044634,0.00018,2]
[406632257,1771998640764,-65000.00000002,0.00018,2]
[406632258,1771998640798,-614.38095049,0.00018,2]
[406632259,1771998640809,-257.90585882,0.00018,2]
[406632260,1771998640821,-4481926.48125742,0.00018,2]
[406632261,1771998640830,-1195.7726719,0.00018,2]
[406632262,1771998640839,-456089.99708628,0.00018,2]
[406632273,1771998645528,-5405.0,0.00015972,2]
[406632274,1771998645537,-20588.8889525,0.00018,2]
[406632275,1771998645548,-2715.00004,0.00018,2]
[406632276,1771998645561,-3776.19999997,0.00018,2]
[406632277,1771998645571,-2388.3495719,0.00018,2]
[406632278,1771998645586,-102030.23376389,0.00018,2]
[406632279,1771998645598,-20152.6407078,0.00018,2]
[406632280,1771998646109,-2424.476379,0.00018,2]
[406632281,1771998646121,-18820.00000041,0.00018,2]
[406632282,1771998646138,-255134.25872505,0.00018,2]
[406632283,1771998646152,-167719.3103583,0.00018,2]
[406632284,1771998646165,-557.793664,0.00018,2]
[406632285,1771998746156,500.0,0.00045842,120]
[406632286,1771998801503,-3624.165,8.288e-05,2]
[406632287,1771998801526,-293.241,8.288e-05,2]
[406632288,1771998801550,-157.02,8.408e-05,2]
[406632289,1771998801574,-150.0,8.456e-05,2]
[406632290,1771998801597,-193.0,8.456e-05,2]
[406632291,1771998813152,-2000000.0,8.457e-05,2]
[406632293,1771998893084,-500.0,8.456e-05,2]
[406632294,1771998893111,-250.99844921,8.456e-05,2]
[406632295,1771998893137,-300.0,8.456e-05,2]
[406632296,1771998893162,-150.0,8.456e-05,2]
[406632297,1771998893187,-15224.2354,8.457e-05,2]
[406632298,1771998893217,-1983574.76615079,8.457e-05,2]
[406632299,1771998908909,177.0,0.0001789,120]
[406632300,1771999045498,500.0,0.00045843,120]
[406632301,1771999053482,-571.74431762,8.456e-05,2]
[406632302,1771999053509,-250.0,8.456e-05,2]
[406632303,1771999053535,-1200.0,8.456e-05,2]
[406632304,1771999053563,-16425.23384921,8.457e-05,2]
[406632305,1771999289994,-425.09831696,8.456e-05,2]
[406632306,1771999290018,-250.0,8.553e-05,2]
[406632307,1771999290042,-315.20669997,8.554e-05,2]
[406632308,1771999290067,-157.02,8.839e-05,2]
[406632309,1771999290092,-197.766467,8.938e-05,2]
[406632310,1771999290117,-177.0,9.15e-05,2]
[406632311,1771999290142,-200.0,9.15e-05,2]
[406632312,1771999290167,-155.0,9.15e-05,2]
[406632313,1771999290191,-684.87133561,9.15e-05,2]
[406632314,1771999290216,-1200.0,9.201e-05,2]
[406632315,1771999290240,-150.0,9.201e-05,2]
[406632316,1771999290264,-300.0,9.201e-05,2]
[406632317,1771999290292,-1795788.03718046,9.202e-05,2]
[406632318,1771999344942,500.0,0.00045774,120]
[406632320,1771999502481,158.48,7.342e-05,2]
[406632324,1771999644623,500.0,0.00045774,120]
[406632325,1771999831701,-300.0,8.999e-05,2]
[406632326,1771999831711,-300.0,8.999e-05,2]
[406632327,1771999831721,-265.07238644,8.999e-05,2]
[406632328,1771999831733,-934.92761356,8.999e-05,2]
[406632329,1771999831743,-224.0,8.999e-05,2]
[406632330,1771999831752,-250.0,9e-05,2]
[406632331,1771999831762,-150.0,9e-05,2]
[406632332,1771999831771,-150.0,9e-05,2]
[406632333,1771999831781,-150.0,9e-05,2]
[406632334,1771999831790,-150.0,9e-05,2]
[406632335,1771999831800,-150.0,9e-05,2]
[406632336,1771999831809,-150.0,9e-05,2]
[406632337,1771999831818,-150.0,9e-05,2]
[406632338,1771999831827,-150.0,9e-05,2]
[406632339,1771999831837,-150.0,9e-05,2]
[406632340,1771999831846,-150.0,9e-05,2]
[406632341,1771999831855,-456.5808904,9e-05,2]
[406632342,1771999831864,-1796.36277034,9.018e-05,2]
[406632343,1771999831875,-1102.96922966,9.018e-05,2]
[406632344,1771999831885,-234.593,9.018e-05,2]
[406632345,1771999831894,-151.0,9.099e-05,2]
[406632346,1771999831904,-1140.68987063,9.1e-05,2]
[406632347,1771999831916,-4151.57496702,9.1e-05,2]
[406632348,1771999831927,-456.5808904,9.101e-05,2]
[406632349,1771999831936,-500.0,9.101e-05,2]
[406632350,1771999831946,-566.64192269,9.101e-05,2]
[406632351,1771999831959,-67.05921926,9.101e-05,2]
[406632352,1771999831968,-500.0,9.101e-05,2]
[406632353,1771999831977,-150.0,9.101e-05,2]
[406632354,1771999831986,-10032.3783469,9.102e-05,2]
[406632356,1771999831998,-1672.81804228,9.102e-05,2]
[406632358,1771999832009,-758.78,9.102e-05,2]
[406632359,1771999832020,-19442.20157083,9.102e-05,2]
[406632360,1771999832030,-11591.20852779,9.102e-05,2]
[406632361,1771999832041,-294.71339587,9.102e-05,2]
[406632362,1771999832060,-1887.52207154,9.102e-05,2]
[406632363,1771999832071,-6832.10080246,9.102e-05,2]
[406632364,1771999837775,-23367.5696689,9.102e-05,2]
[406632367,1771999837836,-1300.6176767,9.102e-05,2]